fUSD/lending_fUSD_20240616
["ID","MTS","AMOUNT","RATE_DAILY","PERIOD"]
[329641825,1718535370394,157.061619,0.000273,70]
[329641826,1718535371188,157.061619,0.000273,70]
[329641827,1718535371934,157.061619,0.000273,70]
[329641828,1718535372742,157.061619,0.000273,70]
[329641829,1718535373602,157.061619,0.000273,70]
[329641830,1718535374351,157.061619,0.000273,70]
[329641831,1718535375216,157.061619,0.000273,70]
[329641832,1718535383414,157.061619,0.000273,71]
[329641833,1718535383573,157.061619,0.000273,71]
[329641834,1718535385358,157.061619,0.000273,71]
[329641835,1718535385898,157.061619,0.000273,71]
[329641836,1718535390576,157.061619,0.000273,71]
[329641837,1718535420259,213.061619,0.000273,72]
[329641842,1718535602961,500.0,0.00027,90]
[329641843,1718535646430,594.44,0.00010908,2]
[329641845,1718535810743,1054.09591904,8.181e-05,2]
[329641847,1718535844793,2554.64776575,8.181e-05,2]
[329641848,1718535864749,2554.64776575,8.181e-05,2]
[329641849,1718535876570,958.18763192,7.772e-05,2]
[329641850,1718535899798,363.26147488,8.181e-05,2]
[329641851,1718535915630,362.94360471,8.181e-05,2]
[329641854,1718535953011,188.91509212,8.181e-05,2]
[329641855,1718535953081,42496.72102266,8.181e-05,2]
[329641857,1718535959852,295.09867568,9e-05,2]
[329641858,1718535971024,150.0,8.181e-05,2]
[329641859,1718535971068,150.0,8.181e-05,2]
[329641860,1718535972285,150.0,8.181e-05,2]
[329641861,1718535972326,150.0,8.181e-05,2]
[329641862,1718535972366,139.20172825,8.181e-05,2]
[329641863,1718535977727,362.06339054,8.181e-05,2]
[329641865,1718536016527,150.0,7.772e-05,2]
[329641866,1718536016557,150.0,7.772e-05,2]
[329641867,1718536016594,150.0,7.772e-05,2]
[329641868,1718536016632,150.0,7.772e-05,2]
[329641869,1718536030948,150.0,8.181e-05,2]
[329641870,1718536030991,150.0,8.181e-05,2]
[329641871,1718536031026,150.0,8.181e-05,2]
[329641872,1718536031060,150.0,8.181e-05,2]
[329641873,1718536031101,150.0,8.181e-05,2]
[329641874,1718536031144,150.0,8.181e-05,2]
[329641875,1718536031182,48.58301108,8.181e-05,2]
[329641876,1718536045335,150.0,8.181e-05,2]
[329641877,1718536045373,150.0,8.181e-05,2]
[329641878,1718536045415,150.0,8.181e-05,2]
[329641879,1718536045454,150.0,8.181e-05,2]
[329641880,1718536045487,152.74407187,8.181e-05,2]
[329641881,1718536045522,34262.42777442,8.181e-05,2]
[329641882,1718536045589,12320.18769948,8.181e-05,2]
[329641883,1718536046973,948.58301108,8.181e-05,2]
[329641884,1718536054523,150.0,7.772e-05,2]
[329641885,1718536054560,150.0,7.772e-05,2]
[329641886,1718536054590,150.0,7.772e-05,2]
[329641887,1718536054631,150.0,7.772e-05,2]
[329641888,1718536054716,358.38173177,7.772e-05,2]
[329641889,1718536055804,1364.00611956,8.181e-05,2]
[329641890,1718536058450,8.84143811,8.181e-05,2]
[329641891,1718536058505,146.15856189,8.181e-05,2]
[329641892,1718536061663,362.98346764,8.181e-05,2]
[329641893,1718536064786,155.0,8.181e-05,2]
[329641894,1718536068868,150.0,8.181e-05,2]
[329641895,1718536068914,150.0,8.181e-05,2]
[329641896,1718536068970,150.0,8.181e-05,2]
[329641897,1718536069003,498.58301108,8.181e-05,2]
[329641898,1718536072521,444.1781774,7.772e-05,2]
[329641899,1718536073684,1364.00611956,8.181e-05,2]
[329641900,1718536074217,434.91140799,8.181e-05,2]
[329641903,1718536085170,155.0,8.181e-05,2]
[329641904,1718536088718,155.0,8.181e-05,2]
[329641906,1718536090888,948.58301108,8.181e-05,2]
[329641908,1718536099067,155.0,8.181e-05,2]
[329641909,1718536100146,200.59021487,0.00010946,2]
[329641910,1718536104831,155.0,8.181e-05,2]
[329641911,1718536110769,4825.00602849,8.181e-05,2]
[329641912,1718536110821,7509.73285465,8.181e-05,2]
[329641913,1718536113082,847.74199164,8.181e-05,2]
[329641914,1718536123097,204.3583909,8.181e-05,2]
[329641915,1718536128835,267.03901205,8.181e-05,2]
[329641917,1718536205465,150.0,8.181e-05,2]
[329641918,1718536205643,150.0,8.181e-05,2]
[329641919,1718536205887,150.0,8.181e-05,2]
[329641920,1718536206344,150.0,8.181e-05,2]
[329641921,1718536206550,150.0,8.181e-05,2]
[329641922,1718536206728,150.0,8.181e-05,2]
[329641923,1718536206908,150.0,8.181e-05,2]
[329641924,1718536207313,121.12775076,8.181e-05,2]
[329641925,1718536207348,28.87224924,8.181e-05,2]
[329641926,1718536207662,150.0,8.181e-05,2]
[329641927,1718536207730,150.0,8.181e-05,2]
[329641928,1718536207833,150.0,8.181e-05,2]
[329641929,1718536207996,150.0,8.181e-05,2]
[329641930,1718536208196,150.0,8.181e-05,2]
[329641931,1718536208419,150.0,8.181e-05,2]
[329641932,1718536208574,165.64016405,8.181e-05,2]
[329641937,1718536234245,-235.37048303,0.00011593,2]
[329641938,1718536234269,-1506.32570796,0.00011593,2]
[329641939,1718536234348,586.86,0.00010625,2]
[329641940,1718536234397,-299.99,0.00011593,2]
[329641944,1718536234526,-195.52207685,0.00011593,2]
[329641945,1718536234538,-404.47792315,0.00011594,2]
[329641946,1718536234552,-1000.0,0.00011594,2]
[329641947,1718536234565,-198.32180243,0.00011594,2]
[329641948,1718536234578,-158.67658596,0.00011597,2]
[329641949,1718536234588,-150.0,0.00011696,2]
[329641950,1718536234599,-300.0,0.00011696,2]
[329641951,1718536234617,-4156.8072,0.00011697,2]
[329641952,1718536234635,-228.61504041,0.000118,2]
[329641954,1718536234647,-155.0,0.000118,2]
[329641956,1718536234668,-250.0,0.00012573,2]
[329641957,1718536234695,-2000.0,0.0001259,3]
[329641958,1718536234714,-155.0,0.00012598,2]
[329641959,1718536234750,-1222.0,0.00012691,2]
[329641960,1718536234776,-58060.27933673,0.00012697,2]
[329641961,1718536234793,-23900.0,0.00012698,2]
[329641962,1718536234816,-195.74,0.00012698,2]
[329641963,1718536234830,-800.0,0.00012698,2]
[329641964,1718536234876,-250.0,0.00012698,2]
[329641965,1718536234888,-321.67,0.00012698,2]
[329641966,1718536234901,-5075.11,0.00012698,2]
[329641967,1718536234913,-299.99,0.00012698,2]
[329641968,1718536234927,-2852.3,0.00012698,2]
[329641969,1718536234938,-5717.1,0.00012708,2]
[329641970,1718536234966,-499.99,0.00012788,2]
[329641971,1718536235080,-169.14,0.00012865,2]
[329641972,1718536235119,-586.86,0.00012889,2]
[329641973,1718536235160,-170.23,0.00013278,2]
[329641974,1718536235216,-170.23,0.00013311,2]
[329641975,1718536235240,-170.23,0.00013344,2]
[329641976,1718536235265,-2710.56,0.00013425,2]
[329641977,1718536235300,-798.84,0.00013699,2]
[329641978,1718536235314,-280.3,0.00013699,2]
[329641979,1718536235329,-575.43,0.00013699,2]
[329641980,1718536235346,-915.49415804,0.000137,2]
[329641981,1718536235371,-500.0,0.000138,2]
[329641982,1718536235423,-64824.519,0.000138,2]
[329641983,1718536235468,-1000.0,0.00013898,2]
[329641984,1718536235489,-1302.1643,0.00013898,2]
[329641985,1718536235528,-1000.0,0.00013899,5]
[329641986,1718536235549,-1405.47,0.000139,2]
[329641987,1718536235578,-915.49415804,0.000139,2]
[329641988,1718536235596,-165.060969,0.00013941,2]
[329641989,1718536235607,-1094.18672991,0.00013957,2]
[329641990,1718536235625,-625.28915843,0.00013998,2]
[329641991,1718536235669,-1218.89370837,0.00013998,2]
[329641992,1718536235690,-687.25630943,0.00013998,2]
[329641993,1718536235708,-1510.12584397,0.00013998,2]
[329641994,1718536235731,-1000.0,0.00013998,2]
[329641995,1718536235753,-659.27820915,0.00013998,2]
[329641996,1718536235780,-2245.81740321,0.00013998,2]
[329641997,1718536235796,-494.05371952,0.00013998,2]
[329641998,1718536235845,-282.95218659,0.00013998,2]
[329641999,1718536235868,-156.9132,0.00013998,2]
[329642000,1718536235890,-2371.26555014,0.00013998,2]
[329642001,1718536235904,-858.78040361,0.00013998,2]
[329642002,1718536235920,-9452.46521274,0.00013998,2]
[329642003,1718536235932,-792.11091625,0.00013998,2]
[329642004,1718536235944,-3010.53119973,0.00013999,2]
[329642005,1718536235959,-1003.10406165,0.00013999,5]
[329642006,1718536235975,-216158.32512028,0.00014,2]
[329642007,1718536236006,-2009.39774727,0.00014,2]
[329642008,1718536236147,-101630.61460078,0.00014,2]
[329642047,1718536239413,-3337.161,0.00014,2]
[329642048,1718536239440,-25609.1736571,0.00014,2]
[329642049,1718536239466,-330.42782799,0.00014041,2]
[329642050,1718536239493,-200.0,0.00014141,2]
[329642051,1718536239566,-800.0,0.00014285,2]
[329642052,1718536239587,-235.61,0.00014357,2]
[329642053,1718536239598,-280.3,0.00014384,2]
[329642054,1718536239611,-7500.0,0.00014456,2]
[329642055,1718536239623,-400.0,0.000145,5]
[329642056,1718536239652,-800.0,0.000146,5]
[329642057,1718536239691,-1300.0,0.000147,5]
[329642058,1718536239711,-803.5321,0.0001471,2]
[329642059,1718536239753,-1700.0,0.000148,5]
[329642060,1718536239775,-4340.55196203,0.000149,2]
[329642061,1718536239814,-154.98560786,0.000149,2]
[329642063,1718536239868,-2100.0,0.000149,5]
[329642064,1718536239884,-187.69398301,0.000149,2]
[329642066,1718536239901,-491.79588468,0.000149,2]
[329642068,1718536239912,-165.060969,0.000149,2]
[329642070,1718536239944,-169.96634997,0.00014989,2]
[329642072,1718536239963,-57780.18015294,0.00014999,2]
[329642074,1718536239985,-3961.30745125,0.00015,2]
[329642075,1718536239997,-1921.79403787,0.00015,2]
[329642077,1718536240009,-150558.97053202,0.00015,2]
[329642080,1718536240038,-28595.34813619,0.00015,2]
[329642083,1718536240072,-30661.59706,0.00015,2]
[329642085,1718536240104,-33017.57440624,0.00015,2]
[329642088,1718536240133,-40188.70718728,0.00015,2]
[329642090,1718536240560,-442.86000003,0.00015,2]
[329642101,1718536243036,-1458.18429658,0.00015,2]
[329642102,1718536244386,-355.83500001,0.00015,2]
[329642103,1718536244710,-1348.37030117,0.00015,2]
[329642104,1718536244804,-33617.55108751,0.00015,2]
[329642106,1718536245113,-26000.0,0.00015,2]
[329642108,1718536245129,-281.35141258,0.00015,2]
[329642109,1718536245154,-525.73608221,0.00015,2]
[329642112,1718536245439,-835.77,0.00015,2]
[329642113,1718536245787,-45719.13836054,0.00015,2]
[329642125,1718536246911,-14110.59351118,0.00015,2]
[329642126,1718536247151,-2964.8717329,0.00015,2]
[329642127,1718536247178,-5958.007393,0.00015,2]
[329642128,1718536247319,-2983.2103724,0.00015,2]
[329642129,1718536247342,-15166.29554956,0.00015,2]
[329642130,1718536247397,-6949.72706986,0.00015,2]
[329642131,1718536247440,-725.46039347,0.00015,2]
[329642132,1718536247789,-978.32951094,0.00015,2]
[329642133,1718536247819,-1332.72,0.00015,2]
[329642134,1718536247863,-74.87616679,0.00015,2]
[329642135,1718536248001,-4572.20407358,0.00015,2]
[329642136,1718536248025,-3189.85102162,0.00015,2]
[329642137,1718536248061,-7036.87300454,0.00015,2]
[329642138,1718536248404,-347.415,0.00015,2]
[329642139,1718536248618,-6673.29685439,0.00015,2]
[329642140,1718536248636,-274.68725396,0.00015,2]
[329642141,1718536248651,-25449.9999,0.00015,2]
[329642142,1718536248668,-8400.0,0.00015,2]
[329642147,1718536248933,-234.99145493,0.00014999,2]
[329642148,1718536248949,-275670.74253182,0.00015,2]
[329642159,1718537374212,-1797.58231532,0.00011963,2]
[329642160,1718537374250,-453.83009299,0.00011963,2]
[329642161,1718537374344,-559.53,0.00011964,2]
[329642162,1718537374413,-104.18779169,0.00012394,2]
[329642176,1718537433380,-958.58113052,0.00011774,2]
[329642177,1718537433393,-58.27980586,0.00012394,2]
[329642178,1718537433404,-150.0,0.00012394,2]
[329642179,1718537433430,-150.0,0.00012394,2]
[329642180,1718537433449,-150.0,0.00012394,2]
[329642181,1718537433498,-150.0,0.00012394,2]
[329642182,1718537433528,-150.0,0.00012394,2]
[329642183,1718537433552,-207.96156362,0.00012394,2]
[329642184,1718537433623,-1133.6852027,0.00012394,2]
[329642185,1718537433644,-453.83009299,0.00013347,2]
[329642186,1718537433661,-2672.09540487,0.00013618,2]
[329642187,1718537433804,-4631.34297496,0.00013618,2]
[329642188,1718537433837,-703.37788318,0.00013618,2]
[329642189,1718537433861,-205.87303699,0.00013618,2]
[329642190,1718537433872,-150.0,0.00013717,2]
[329642191,1718537433883,-66.07640898,0.00013718,2]
[329642192,1718537433932,-4170.16359102,0.00013718,2]
[329642193,1718537433970,-250.0,0.00013795,2]
[329642194,1718537434006,-250.0,0.00013843,2]
[329642195,1718537434017,-2000.0,0.00013889,3]
[329642196,1718537434038,-1308.10850031,0.00013967,2]
[329642197,1718537434365,-291.826501,0.00013967,2]
[329642198,1718537434437,-470.02471947,0.00013967,2]
[329642199,1718537434507,-630.10225962,0.00013967,2]
[329642200,1718537434572,-530.865,0.00013967,2]
[329642201,1718537434633,-463.05,0.00013967,2]
[329642202,1718537434746,-7552.99627616,0.00013967,2]
[329642203,1718537434770,-536.12066121,0.00013967,2]
[329642216,1718537439627,-1599.50354593,0.00013967,2]
[329642217,1718537440309,-10517.4025363,0.00013967,2]
[329642218,1718537440326,-281.3932,0.00013973,2]
[329642219,1718537440344,-39.93247949,0.00013973,2]
[329642220,1718537440869,-111.05752051,0.00013973,2]
[329642221,1718537440884,-188.48,0.00014076,2]
[329642222,1718537440895,-339.4,0.00014076,2]
[329642223,1718537440913,-4572.58,0.00014076,2]
[329642224,1718537440924,-399.42,0.00014119,2]
[329642225,1718537440954,-198.07,0.0001422,2]
[329642226,1718537440965,-559.53,0.00014228,2]
[329642227,1718537440976,-167.45,0.00014413,2]
[329642228,1718537440994,-281.3932,0.00014795,2]
[329642229,1718537441007,-9339.59649573,0.0001485,2]
[329642230,1718537441117,-6667.47765848,0.0001485,2]
[329642231,1718537441236,-23137.59813368,0.0001485,2]
[329642232,1718537441256,-424.4611,0.00014899,2]
[329642233,1718537441273,-1015.50036139,0.00014899,2]
[329642234,1718537441308,-3978.83929861,0.000149,2]
[329642235,1718537441332,-187.69398301,0.000149,2]
[329642236,1718537441380,-2417.40995354,0.000149,2]
[329642237,1718537441413,-779.79852459,0.000149,2]
[329642238,1718537441444,-327.86392312,0.000149,2]
[329642239,1718537441469,-254.59120521,0.00014997,2]
[329642240,1718537441496,-369.29912648,0.00014997,2]
[329642241,1718537441527,-1026.67841696,0.00014998,2]
[329642242,1718537441539,-296.24683358,0.00014998,2]
[329642243,1718537441551,-258658.65691214,0.00014999,2]
[329642244,1718537441584,-1163.382,0.00014999,2]
[329642245,1718537441597,-2305.46088438,0.00014999,2]
[329642246,1718537442045,-42519.0446674,0.00014999,2]
[329642247,1718537442085,-16934.04267543,0.00014999,2]
[329642248,1718537442136,-580.78844532,0.00014999,2]
[329642249,1718537442421,-1220.20775906,0.00014999,2]
[329642250,1718537442454,-406.46916604,0.00014999,2]
[329642251,1718537442736,-804.88887239,0.00014999,2]
[329642255,1718537442944,-428.61941707,0.00014999,2]
[329642259,1718537445149,-441.72500004,0.00014999,2]
[329642260,1718537445189,-1075.18,0.00014999,2]
[329642261,1718537445211,-11188.42004702,0.00014999,2]
[329642262,1718537445567,-746.54000001,0.00014999,2]
[329642263,1718537445582,-8708.97670485,0.00014999,2]
[329642264,1718537446092,-625.335,0.00014889,2]
[329642267,1718537448559,-1026.665,0.00014889,2]
[329642268,1718537448573,-446.47,0.00014889,2]
[329642269,1718537448592,-26.76508,0.00014998,2]
[329642270,1718537448618,-306.8525853,0.00014998,2]
[329642271,1718537448648,-186.23753314,0.00014999,2]
[329642273,1718537448782,-1000.0,0.00014999,2]
[329642274,1718537449701,-5889.685558,0.00014999,2]
[329642275,1718537449718,-805.26599995,0.00014999,2]
[329642276,1718537449739,-14889.58965068,0.00014999,2]
[329642277,1718537449754,-2653.11876041,0.00015,2]
[329642278,1718537449777,-3150.39333094,0.00015,2]
[329642281,1718537450054,-281.3932,0.00011774,2]
[329642282,1718537450095,-123.33415352,0.00011774,2]
[329642283,1718537450123,-3420.22500811,0.00015,2]
[329642284,1718537450382,-2099.61082987,0.00015,2]
[329642285,1718537450472,-959.66047797,0.00015,2]
[329642286,1718537450555,-1900.41,0.00015,2]
[329642287,1718537450607,-4766.94579574,0.00015,2]
[329642288,1718537450635,-1685.47391358,0.00015,2]
[329642289,1718537450697,-856.20926424,0.00015,2]
[329642290,1718537451275,-255.637,0.00015,2]
[329642291,1718537451297,-428.29739386,0.00015,2]
[329642292,1718537451319,-15228.53491843,0.00015,2]
[329642293,1718537451437,-769.02819339,0.00015,2]
[329642302,1718537729483,-1976.7844549,0.000126,2]
[329642304,1718537837304,1862.88760451,0.0002736,120]
[329642305,1718537845337,-155.0,0.00013737,2]
[329642306,1718537845369,-296.16162819,0.00013738,2]
[329642307,1718537845411,-791.09120065,0.00013739,2]
[329642308,1718537845454,-3965.44421013,0.0001374,2]
[329642309,1718537845509,-168.18,0.00013748,2]
[329642310,1718537845565,-150.0,0.00013999,2]
[329642311,1718537845601,-150.0,0.00013999,2]
[329642312,1718537845644,-528790.47470538,0.00014,2]
[329642313,1718537845684,-725.88,0.00014034,2]
[329642314,1718537845730,-2337.77,0.00014157,2]
[329642315,1718537845774,-250.0,0.00014202,2]
[329642316,1718537845883,-2823.82,0.00014208,2]
[329642317,1718537845968,-1000.0,0.00014305,2]
[329642318,1718537846019,-250.0,0.00014393,2]
[329642319,1718537846055,-168.18,0.00014435,2]
[329642320,1718537846113,-499.99,0.00014435,2]
[329642321,1718537846187,-708.41842212,0.00014788,2]
[329642322,1718537846266,-383.8454166,0.00014788,2]
[329642323,1718537846306,-11828.0,0.00014795,2]
[329642324,1718537846351,-811.0,0.00014889,2]
[329642325,1718537846404,-165.0,0.00014889,2]
[329642326,1718537846453,-262.506239,0.000149,2]
[329642327,1718537846484,-1000.0,0.000149,2]
[329642328,1718537846517,-1611.6066357,0.000149,2]
[329642329,1718537846567,-218.57594874,0.000149,2]
[329642330,1718537846602,-256.507,0.00014992,2]
[329642331,1718537846642,-1304.0,0.00014992,2]
[329642332,1718537846716,-2409.0,0.00014992,2]
[329642333,1718537846759,-205.741,0.00014992,2]
[329642334,1718537846802,-459.508,0.00014992,2]
[329642335,1718537846845,-3197.866,0.00014992,2]
[329642336,1718537846916,-547.0,0.00014992,2]
[329642337,1718537846948,-1992.183,0.00014992,2]
[329642338,1718537847020,-38111.0,0.00014992,2]
[329642339,1718537847058,-1659.0,0.00014992,2]
[329642340,1718537847106,-1067.0,0.00014992,2]
[329642341,1718537847142,-39280.25059349,0.00014998,2]
[329642345,1718537985068,-888.56281626,0.00014899,2]
[329642346,1718537985102,-1074.4044238,0.000149,2]
[329642347,1718537985160,-679.50016874,0.00014996,2]
[329642348,1718537985200,-150.0,0.00014997,2]
[329642349,1718537985273,-38807.5325912,0.00014998,2]
[329642350,1718537997968,-2555.21259535,0.00011249,2]
[329642351,1718538014258,-2555.21259535,0.00011249,2]
[329642352,1718538032005,-902.57952364,0.00011249,2]
[329642353,1718538064447,-2567.54584655,0.00011249,2]
[329642354,1718538135655,-2000.0,0.00015374,3]
[329642355,1718538156168,-1000.0,0.00011246,2]
[329642356,1718538156215,-529.138446,0.00011247,2]
[329642357,1718538156258,-300.0,0.00011248,2]
[329642358,1718538156292,-150.0,0.00011248,2]
[329642359,1718538156332,-17718.7505108,0.00011249,2]
[329642360,1718538156418,-177.19,0.00011371,2]
[329642361,1718538156459,-534.28,0.00012204,2]
[329642362,1718538156513,-296.16162819,0.00012356,2]
[329642363,1718538156574,-420.0,0.00012357,2]
[329642364,1718538156608,-587.0,0.00013576,2]
[329642365,1718538156675,-752.92975559,0.000139,2]
[329642366,1718538157013,-250.0,0.00014277,2]
[329642367,1718538157048,-534.28,0.00014468,2]
[329642368,1718538157102,-253.25388,0.00014795,2]
[329642369,1718538157163,-1732.65219,0.0001485,2]
[329642370,1718538157213,-716.26961586,0.000149,2]
[329642371,1718538157263,-313.0,0.00014915,2]
[329642372,1718538157314,-1659.0,0.00014992,2]
[329642373,1718538157362,-290.0,0.00014992,2]
[329642374,1718538157398,-5791.0,0.00014992,2]
[329642375,1718538157441,-15075.09397356,0.00014992,2]
[329642392,1718538636864,-424.69537084,0.0001122,2]
[329642393,1718538636881,-13.14517936,0.0001122,2]
[329642394,1718538636906,-791.63952452,0.0001122,2]
[329642395,1718538636922,-498.98827133,0.0001122,2]
[329642396,1718538636938,-800.43257317,0.00011221,2]
[329642397,1718538637055,-442.25,0.00011221,2]
[329642398,1718538637262,-7.78816358,0.00011221,2]
[329642399,1718538637292,-258.37137548,0.00011222,2]
[329642400,1718538637307,-339.07696494,0.00011222,2]
[329642401,1718538637323,-2724.45857206,0.00011222,2]
[329642402,1718538637355,-491.40445475,0.00011222,2]
[329642403,1718538637381,-16368.89307834,0.00011222,2]
[329642404,1718538637394,-1000.0,0.00011223,2]
[329642405,1718538637409,-1972.26794574,0.00011223,2]
[329642406,1718538637427,-296.16162819,0.00011224,2]
[329642407,1718538637449,-300.0,0.00011224,2]
[329642408,1718538637478,-150.0,0.00011238,2]
[329642409,1718538637493,-381.32790316,0.00011244,2]
[329642410,1718538637506,-210.0,0.00012362,2]
[329642411,1718538637519,-150.78,0.00013886,2]
[329642412,1718538637532,-10517.41,0.00013915,2]
[329642413,1718538637549,-2000.0,0.00013929,3]
[329642414,1718538637568,-199.71,0.00014112,2]
[329642415,1718538637586,-167.71,0.00014205,2]
[329642416,1718538637610,-250.0,0.00014231,2]
[329642417,1718538637623,-600.0,0.00014242,2]
[329642418,1718538637646,-1882.21,0.00014284,2]
[329642421,1718538637663,-777.49246421,0.00014892,2]
[329642423,1718538637682,-3647.26935705,0.000149,2]
[329642425,1718538637705,-2696.09417701,0.0001499,2]
[329642426,1718538637722,-502.67015523,0.0001499,2]
[329642427,1718538637732,-5586.98275761,0.0001499,2]
[329642428,1718538637744,-205.87398855,0.0001499,2]
[329642431,1718538637758,-206.14054789,0.0001499,2]
[329642432,1718538637796,-183.51620127,0.0001499,2]
[329642433,1718538637815,-659.46610537,0.0001499,2]
[329642434,1718538637826,-543.2167885,0.0001499,2]
[329642435,1718538637840,-1000.0,0.00014991,2]
[329642436,1718538637851,-358.76937107,0.00014991,2]
[329642437,1718538637863,-241.72145719,0.00014991,2]
[329642438,1718538637874,-1275.012,0.00014992,2]
[329642439,1718538637890,-383.933,0.00014992,2]
[329642440,1718538637901,-1830.0,0.00014992,2]
[329642441,1718538637915,-811.0,0.00014992,2]
[329642442,1718538637952,-616.0,0.00014992,2]
[329642443,1718538637964,-165.0,0.00014992,2]
[329642444,1718538637996,-1652.0,0.00014992,2]
[329642445,1718538638010,-442.0,0.00014992,2]
[329642446,1718538638029,-447.0,0.00014992,2]
[329642447,1718538638060,-150.0,0.00014992,2]
[329642448,1718538638105,-1304.0,0.00014992,2]
[329642449,1718538638135,-2409.0,0.00014992,2]
[329642452,1718538638164,-1981.0,0.00014992,2]
[329642455,1718538638211,-547.0,0.00014992,2]
[329642458,1718538638240,-3196.0,0.00014992,2]
[329642460,1718538638268,-1197.0,0.00014992,2]
[329642462,1718538638308,-211.0,0.00014992,2]
[329642463,1718538638342,-290.0,0.00014992,2]
[329642464,1718538638391,-5791.0,0.00014992,2]
[329642465,1718538638413,-154.996,0.00014992,2]
[329642466,1718538638466,-264.847,0.00014992,2]
[329642467,1718538638479,-5161.0,0.00014992,2]
[329642468,1718538638493,-22214.40707629,0.00014992,2]
[329642469,1718538638547,-1420.22,0.00014992,2]
[329642470,1718538638575,-4895.0000011,0.00014992,2]
[329642471,1718538639923,-1454.0,0.00014992,2]
[329642472,1718538639945,-8127.37292261,0.00014992,2]
[329642473,1718538639968,-152.817,0.00014992,2]
[329642474,1718538640023,-200.0,0.00014992,2]
[329642475,1718538640039,-150.757,0.00014992,2]
[329642476,1718538640052,-1067.0,0.00014992,2]
[329642477,1718538640070,-576.08774619,0.00014992,2]
[329642478,1718538640133,-303.29325585,0.00014992,2]
[329642479,1718538640148,-164.53651546,0.00014992,2]
[329642480,1718538640160,-263.82580586,0.00014992,2]
[329642481,1718538640186,-71.47253463,0.00014992,2]
[329642482,1718538640430,-310322.64889297,0.00014992,2]
[329642483,1718538640451,-948.1606438,0.00014992,2]
[329642484,1718538640463,-5884.07659749,0.00014992,2]
[329642485,1718538640477,-290.10514488,0.00014992,2]
[329642486,1718538640499,-155.0,0.00014992,2]
[329642488,1718538640517,-348.2371921,0.00014992,2]
[329642490,1718538640536,-305.0,0.00014992,2]
[329642491,1718538640547,-150.0,0.00014992,2]
[329642493,1718538640574,-150.0,0.00014992,2]
[329642495,1718538640590,-220.20685692,0.00014992,2]
[329642497,1718538640618,-155.0,0.00014992,2]
[329642499,1718538640630,-411.02483161,0.00014992,2]
[329642501,1718538640640,-7784.73058141,0.00014992,2]
[329642503,1718538640653,-1278.05478064,0.00014996,2]
[329642505,1718538640665,-326.94106438,0.00014996,2]
[329642507,1718538640697,-158.47838024,0.00014996,2]
[329642510,1718538640721,-2338.37648856,0.00014996,2]
[329642511,1718538640736,-3067.91523632,0.00014997,2]
[329642513,1718538640758,-4446.54749549,0.00014997,2]
[329642514,1718538640770,-304.61863798,0.00014997,2]
[329642515,1718538640789,-525.60111443,0.00014997,2]
[329642517,1718538640810,-151.61656729,0.00014999,2]
[329642519,1718538640823,-412546.57075699,0.00014999,2]
[329642521,1718538640841,-532.07786788,0.00014999,2]
[329642531,1718538641355,-843.26879741,0.00014999,2]
[329642532,1718538641526,-483.66,0.00014999,2]
[329642538,1718538643525,-477.51307724,0.000149,2]
[329642540,1718538643541,-56.49192277,0.00014999,2]
[329642544,1718538643664,-3495.20126163,0.00014999,2]
[329642545,1718538643847,-975.50742252,0.00014999,2]
[329642553,1718538644228,-5301.01197096,0.00014999,2]
[329642554,1718538644272,-2789.46621071,0.00014999,2]
[329642555,1718538644371,-1234.77609435,0.00014999,2]
[329642556,1718538644479,-670.14303817,0.00014999,2]
[329642557,1718538644538,-2930.15933922,0.00014999,2]
[329642558,1718538644749,-222906.87345166,0.00014999,2]
[329642559,1718538644851,-712.04599,0.00014999,2]